Cogmind - Beta 15 @@@ ROGUE MODE // 2025.09.28 @ 13:19:27 Player: WitherScout Result: Destroyed by Y-45 Defender with Heavy Assault Rifle Performance ------------- Evolutions (1) 500 Regions Visited (3) 600 Robots Destroyed (45) 225 Value Destroyed (1134) 1134 Prototype IDs (0) 0 Alien Tech Used (0) 0 Bonus (0) 0 TOTAL SCORE: 2459 Bonus ------- None Cogmind --------- Core Integrity 0/400 Matter 264/300 Energy 125/125 System Corruption 4% Temperature Warm (125) Movement Treading (480) Ox4 Location -9/Storage Parts ------- > --- POWER (1) -------- Light Ion Engine > --- PROPULSION (2) --- Light Treads > --- UTILITY (3) ------ Huge Storage Unit Light Armor Plating Light Armor Plating > --- WEAPON (3) ------- Light Assault Rifle Light Assault Rifle > --- INVENTORY (25) --- Ion Engine Ion Engine Light Ion Engine Improved Ion Engine Improved Ion Engine Improved Ion Engine Light Treads Light Treads Light Treads Light Treads Light Treads Cooling System Large Battery (200) Sensor Array Terrain Scanner Core Shielding Utility Shielding Light Armor Plating Light Armor Plating Reactive Plating Light Assault Rifle Peak State ------------ > --- POWER ------------ Ion Engine > --- PROPULSION ------- Light Treads Light Treads > --- UTILITY ---------- Huge Storage Unit Medium Armor Plating Tractor Beam > --- WEAPON ----------- Light Assault Rifle Light Assault Rifle Heavy Assault Rifle > --- INVENTORY -------- Ion Engine Light Ion Engine Light Ion Engine Improved Ion Engine Light Treads Light Treads Light Treads Light Treads Light Treads Cooling System Large Battery Sensor Array Terrain Scanner Utility Shielding Light Armor Plating Light Armor Plating Light Armor Plating Light Armor Plating Medium Armor Plating Reactive Plating Light Assault Rifle Light Assault Rifle Light Assault Rifle Light Assault Rifle Light Assault Rifle [Rating: 14] Favorites ----------- Power Ion Engine Engine Ion Engine Propulsion Light Treads Treads Light Treads Wheel Wheel Utility Tractor Beam Device Tractor Beam Storage Large Storage Unit Protection Weapon Shielding Weapon Light Assault Rifle Ballistic Gun Light Assault Rifle Build | -11 -10 -9 -9 ------- Run | Yrd Mat Mat Sto Slots Evolved 2 | . . 2 . Power . | . . . . Propulsion . | . . . . Utility 1 | . . 1 . Weapon 1 | . . 1 . Parts Attached 40 | 9 8 16 7 Power 6 | 2 3 1 . Engine 6 | 2 3 1 . Core . | . . . . Reactor . | . . . . Propulsion 9 | 4 . 3 2 Treads 7 | 2 . 3 2 Leg . | . . . . Wheel 2 | 2 . . . Hover . | . . . . Flight . | . . . . Utility 14 | 1 3 6 4 Device 4 | . 1 3 . Storage 3 | 1 1 1 . Processor . | . . . . Hackware . | . . . . Protection 7 | . 1 2 4 Artifact . | . . . . Weapon 11 | 2 2 6 1 Energy Gun . | . . . . Energy Cannon . | . . . . Ballistic Gun 11 | 2 2 6 1 Ballistic Cannon . | . . . . Launcher . | . . . . Special Weapon . | . . . . Impact Weapon . | . . . . Slashing Weapon . | . . . . Piercing Weapon . | . . . . Special Melee Weapon . | . . . . Unidentified Prototypes . | . . . . Parts Lost 22 | . 2 8 12 Power 2 | . . 1 1 Propulsion 5 | . . 2 3 Utility 7 | . 1 3 3 Weapon 8 | . 1 2 5 Highest Loss Streak 6 | . 2 6 6 To Critical Strikes . | . . . . Average Backups 15 | 2 8 15 22 Power 2 | . 1 2 4 Propulsion 3 | 1 2 2 4 Utility 6 | . 1 6 9 Weapon 3 | . 2 3 3 Tool/Special . | . . . . Unused Backups 28 | . 1 10 17 Power 8 | . 1 1 6 Propulsion 10 | . . 6 4 Utility 8 | . . 2 6 Weapon 2 | . . 1 1 Tool/Special . | . . . . Average Slot Usage (%) 97 | . 95 98 96 Engine 11 | . 14 10 10 Treads 23 | . 28 21 21 Device 9 | . 7 10 7 Storage 11 | . 14 11 11 Protection 9 | . 1 10 13 Ballistic Gun 31 | . 27 32 32 Peak Build Rating 14 | 6 10 12 14 Average Rating 10 | 5 8 10 11 On Entrance 6 | . 6 8 12 Naked Turns . | . . . . Heaviest Build 98 | 12 29 94 98 Greatest Support 40 | 40 40 40 40 Greatest Overweight (x) 4 | . . 2 4 Average Overweight (x) . | . . . 2 Largest Inventory Capacity 25 | 8 15 25 25 Average Capacity 17 | 7 10 17 25 Most Carried 25 | 6 14 23 25 Average Carried 15 | 2 8 15 22 Final Capacity 25 | 8 15 25 25 Final Carried 23 | 6 14 23 21 Class Distribution -------------------- 58% | Scavenger-Tank 28% | Mutant 12% | Tank Dominant Class ---------------- Mutant | -10/Materials Scavenger-Tank | -9/Materials Scavenger-Tank | -9/Storage Resources | -11 -10 -9 -9 ----------- Run | Yrd Mat Mat Sto Matter Collected 1137 | 183 351 385 218 Remotely 563 | . . 385 178 Salvage Created 1330 | . 413 474 443 Parts 92 | . 26 38 28 Haulers Intercepted . | . . . . Recyclers Shooed 1 | . . . 1 Parts Field Recycled . | . . . . Retrieved Matter . | . . . . Parts Self-Destructed . | . . . . Prevented . | . . . . Kills | -11 -10 -9 -9 ------- Run | Yrd Mat Mat Sto Combat Hostiles Destroyed 44 | . 14 16 14 Guns 41 | . 14 16 11 AOE 3 | . . . 3 Classes Destroyed 6 | . 2 1 3 Builder 1 | . . . 1 Swarmer 21 | . 6 9 6 Grunt 15 | . 8 3 4 Brawler 1 | . . . 1 Duelist 1 | . . . 1 Sentry 6 | . . 4 2 Best Kill Streak 5 | . 3 5 4 Combat Bots Only 5 | . 3 5 4 Max Kills in Single Turn 3 | . 1 2 3 Gunslinging 1 | . . 1 . Exploded 3 | . . . 3 Melee . | . . . . Uniques/NPCs Destroyed . | . . . . Combat | -11 -10 -9 -9 -------- Run | Yrd Mat Mat Sto Hostile Shots Fired 348 | . 87 111 150 Missed 103 | . 24 28 51 Hits 245 | . 63 83 99 Melee 7 | . . . 7 Projectile 238 | . 63 83 92 AOE 3 | . . 3 . Critical Strikes 4 | . . 1 3 Damage Taken 3211 | . 664 1216 1331 Core 540 | . 127 176 237 Absorbed by Shields . | . . . . Redirected to Shielding 50 | . 2 48 . Regen/Repaired (Parts) 275 | . . 275 . Core Remaining (%) 74 | 100 49 . . Volleys Fired 131 | . 40 43 48 Largest 3 | . 2 3 3 Hottest 63 | . 40 63 63 Shots Fired 350 | . 80 129 141 Gun 350 | . 80 129 141 Cannon . | . . . . Launcher . | . . . . Special . | . . . . Kinetic 350 | . 80 129 141 Thermal . | . . . . Explosive . | . . . . Electromagnetic . | . . . . Robot Hit Streak 23 | . 19 23 15 Robot Miss Streak 4 | . 4 3 4 Penetration Max . | . . . . Secondary Targets 7 | . 2 3 2 Max Gunslinging Chain 1 | . 1 1 1 Shots Hit Robots 228 | . 53 86 89 Core Hits 87 | . 20 33 34 Critical Kills . | . . . . Critical Parts Destroyed . | . . . . Critical Strikes 1 | . . . 1 Destroy 1 | . . . 1 Melee Attacks . | . . . . Impact . | . . . . Slashing . | . . . . Piercing . | . . . . Sneak Attacks . | . . . . Combat Hostiles . | . . . . Follow-up Attacks . | . . . . Damage Inflicted 2426 | . 543 815 1068 Guns 2134 | . 543 809 782 Cannons . | . . . . Explosions 286 | . . . 286 Melee . | . . . . Ramming 6 | . . 6 . Kinetic 2134 | . 543 809 782 Thermal . | . . . . Explosive 286 | . . . 286 Electromagnetic . | . . . . Impact . | . . . . Slashing . | . . . . Piercing . | . . . . Highest Corruption 4 | . . 4 4 Average Corruption 3 | . . 3 4 Corruption Purged . | . . . . Corruption Blocked . | . . . . Effects 31 | . . 16 15 Message Errors 7 | . . 1 6 Matter Fused 4 | . . 2 2 Heat Flow Errors 2 | . . 2 . Energy Discharges 3 | . . 1 2 Parts Rejected 1 | . . 1 . Data Loss (minor) 5 | . . 2 3 Data Loss (major) 4 | . . 3 1 Misfires 2 | . . 2 . Alerts 1 | . . 1 . Weapon Failures 2 | . . 1 1 Overload Shots . | . . . . Overflow Damage 26 | . . . 26 Projectiles . | . . . . Explosions 26 | . . . 26 Melee . | . . . . Knockbacks . | . . . . Impact . | . . . . Kinetic . | . . . . Secondary . | . . . . Self-Inflicted Damage . | . . . . Shots . | . . . . Rammed 1 | . . 1 . Targets Rammed 1 | . . 1 . Kicked . | . . . . Crushed . | . . . . Highest Temperature 302 | . 18 302 130 Average Temperature 40 | . 8 54 31 Received Heat Transfer 759 | . 249 276 234 Effects 1 | . . 1 . Energy Bleed 1 | . . 1 . Siege Activations . | . . . . Martial Activations . | . . . . Shielding Activations . | . . . . Robots Disrupted . | . . . . Combat Hostiles . | . . . . Robots Corrupted . | . . . . Combat Hostiles . | . . . . Parts Fried . | . . . . Impact Corruptions . | . . . . Robots Melted . | . . . . Combat Hostiles . | . . . . Parts Melted . | . . . . Heat Transferred . | . . . . Parts Sabotaged . | . . . . Parts Stolen . | . . . . Parts Stripped . | . . . . Power Chain Reactions . | . . . . Alert | -11 -10 -9 -9 ------- Run | Yrd Mat Mat Sto Maximum Alert Level . | . . . . Low Security (%) 100 | 100 100 100 100 Level 1 . | . . . . Level 2 . | . . . . Level 3 . | . . . . Level 4 . | . . . . Level 5 . | . . . . High Security . | . . . . Max Security . | . . . . Peak Influence 197 | . 148 197 149 Initial 52 | . . 52 1 Average 73 | . 92 74 60 Influence Increases 1279 | . 386 480 413 Destroy 0b10 Robot/C 880 | . 280 320 280 Destroy 0b10 Robot/NC 5 | . . . 5 Destroy Leader 190 | . 50 80 60 Successful Hack 38 | . 26 5 7 Disable Machine 45 | . 15 . 30 Destroy Structure 1 | . . . 1 Lose Combat Pursuer 120 | . 15 75 30 Influence Decreases 1181 | . 262 598 321 Entered New Map 77 | . . 72 5 Time Decay 765 | . 242 327 196 Lost Part 200 | . 20 60 120 Purge Threat 139 | . . 139 . Squads Dispatched 6 | . 2 2 2 Investigation 2 | . 2 . . Extermination . | . . . . Reinforcement 2 | . . 2 . Assault . | . . . . Garrison 2 | . . . 2 Intercept . | . . . . Searches Triggered . | . . . . Construction Impeded . | . . . . Haulers Reinforced . | . . . . Active Scanning Responses . | . . . . Cargo Convoy Interrupts . | . . . . Stealth | -11 -10 -9 -9 --------- Run | Yrd Mat Mat Sto Distress Signals 7 | . 1 2 4 Communications Jammed . | . . . . Distress Signals . | . . . . Times Spotted 73 | . 20 34 19 Peak Tracking Total 6 | . 5 6 6 Tactical Retreats 5 | . 1 2 2 Traps | -11 -10 -9 -9 ------- Run | Yrd Mat Mat Sto Traps Triggered 5 | . . 5 . Indirectly . | . . . . Trap Hack Attempts . | . . . . Triggered . | . . . . Disarmed . | . . . . Reprogrammed . | . . . . Reused . | . . . . Traps Extracted . | . . . . Installed . | . . . . Triggered . | . . . . Machines | -11 -10 -9 -9 ---------- Run | Yrd Mat Mat Sto Machines Disabled 3 | . 1 . 2 Max in Single Turn 1 | . 1 . 1 Garrison Access 1 | . . . 1 Machines Repaired . | . . . . Machines Dismantled . | . . . . Machines Sabotaged . | . . . . Overloaded Fab Kills . | . . . . Hacking | -11 -10 -9 -9 --------- Run | Yrd Mat Mat Sto Machines Accessed 15 | . 5 6 4 Terminals 8 | . 4 2 2 Fabricators . | . . . . Repair Stations 3 | . 1 2 . Recycling Units 1 | . . . 1 Scanalyzers 2 | . . 2 . Garrison Access 1 | . . . 1 Total Hacks 43 | . 14 20 9 Successful 25 | . 6 13 6 Failed 18 | . 8 7 3 Catastrophic 1 | . 1 . . Database Lockouts . | . . . . Manual 3 | . 2 1 . Terminals 22 | . 11 5 6 Fabricators . | . . . . Repair Stations 11 | . 3 8 . Recycling Units 2 | . . . 2 Scanalyzers 7 | . . 7 . Garrison Access 1 | . . . 1 Terminal Hacks 9 | . 5 1 3 Record 1 | . 1 . . Open Door 1 | . . . 1 Emergency Access Points 1 | . . . 1 Unreport Threat 1 | . . 1 . Locate Traps 1 | . . . 1 Security Status 1 | . 1 . . Transport Status 1 | . 1 . . Zone Layout 2 | . 2 . . Fabricator Hacks . | . . . . Repair Station Hacks 7 | . 1 6 . Scan Component 4 | . 1 3 . Repair 3 | . . 3 . Recycling Unit Hacks 2 | . . . 2 Report Inventory 1 | . . . 1 Retrieve Components 1 | . . . 1 Scanalyzer 6 | . . 6 . Insert Component 3 | . . 3 . Analyze 3 | . . 3 . Garrison Access Hacks 1 | . . . 1 Seal Access 1 | . . . 1 Unauthorized Hacks . | . . . . Terminals . | . . . . Fabricators . | . . . . Repair Stations . | . . . . Recycling Units . | . . . . Scanalyzers . | . . . . Garrison Access . | . . . . Data Cores Recovered . | . . . . Used . | . . . . Hacking Detections 11 | . 4 6 1 Full Trace Events 3 | . 2 1 . Feedback Events . | . . . . Feedback Blocked . | . . . . Robot Schematics Acquired . | . . . . Robots Built . | . . . . Authchips . | . . . . Time . | . . . . Total Robot Build Rating . | . . . . Part Schematics Acquired 3 | . . 3 . Parts Built . | . . . . Authchips . | . . . . Time . | . . . . Total Part Build Rating . | . . . . Parts Repaired 3 | . . 3 . Time 78 | . . 78 . Parts Recycled . | . . . . Recycled Matter . | . . . . Retrieved Matter . | . . . . Retrieved Components 3 | . . . 3 Parts Scanalyzed 3 | . . 3 . Part Schematics Acquired 3 | . . 3 . Parts Damaged . | . . . . Bothacking | -11 -10 -9 -9 ------------ Run | Yrd Mat Mat Sto Used RIF Installer . | . . . . Robots Hacked . | . . . . Non-combat . | . . . . Combat . | . . . . Robot Hacks Applied . | . . . . Relay Couplers Released . | . . . . Fabnet Peak Effective % . | . . . . Robots Rewired . | . . . . Allies Hacked . | . . . . Hacks Repelled . | . . . . Allies | -11 -10 -9 -9 -------- Run | Yrd Mat Mat Sto Total Allies . | . . . . Largest Group . | . . . . Highest-Rated Group . | . . . . Highest-Rated Ally . | . . . . Total Orders . | . . . . Ally Attacks . | . . . . Total Damage . | . . . . Kills . | . . . . Allies Corrupted . | . . . . Allies Melted . | . . . . Intel | -11 -10 -9 -9 ------- Run | Yrd Mat Mat Sto Active Infowar (turns) 1 | . . 1 . Terrain 1 | . . 1 . Robot Analysis Total . | . . . . Derelict Logs Recovered . | . . . . Drone Launches . | . . . . Drone Recoveries . | . . . . Exploration | -11 -10 -9 -9 ------------- Run | Yrd Mat Mat Sto Turns Passed 2398 | 58 571 1169 600 Spaces Moved 907 | 44 265 460 138 Core 1 | 1 . . . Treads 864 | 1 265 460 138 Legs . | . . . . Wheels 42 | 42 . . . Hover . | . . . . Flight . | . . . . Fastest Speed 50 | 50 160 160 320 Average Speed 194 | 90 160 185 321 Slowest Speed 480 | 160 160 320 480 Overloaded Moves . | . . . . Propulsion Burnouts . | . . . . Robots Hopped . | . . . . Potential Cave-ins . | . . . . Cave-ins Triggered . | . . . . Exploration Rate (%) 29 | 3 37 41 36 Regions Visited 3 Branch Regions 1 Pre-discovered Areas . | . . . . Known Exits Taken . | . . . . Unknown Exits Taken 3 | 1 1 1 . Scrap Searched . | . . . . Spaces Dug . | . . . . Terrain Destroyed . | . . . . Melee . | . . . . Projectile . | . . . . AOE . | . . . . Terrain Rammed . | . . . . Walls Destroyed . | . . . . Machines Disabled . | . . . . Actions | -11 -10 -9 -9 --------- Run | Yrd Mat Mat Sto Total 1324 | 58 346 706 214 Wait 148 | 1 10 129 8 Move 904 | 43 264 459 138 Hop . | . . . . Pick Up 58 | 5 13 32 8 Fast Attach 12 | 6 1 5 . Attach 23 | . 2 10 11 Detach . | . . . . Swap 20 | 3 7 9 1 Drop 27 | . 9 18 . Fire 131 | . 40 43 48 Melee . | . . . . Ram . | . . . . Kick . | . . . . Crush 1 | . . 1 . Escape Stasis . | . . . . Rewire . | . . . . Trap . | . . . . Miscellaneous . | . . . . Route ------- -11/Scrapyard -10/Materials -9/Materials (discovered 2 exits: [*Min] / *Sto) -9/Storage History --------- Turn | Location | Event 16 | -11/Scrapyard | Discovered new exit (range 14) 59 | -11/Scrapyard | Entered Materials 189 | -10/Materials | Discovered new exit (range 18) 317 | -10/Materials | Build established: Mutant 550 | -10/Materials | Core integrity fell below 50% 630 | -10/Materials | Entered another Materials area 630 | -9/Materials | Evolved 2 slots: Utility x1, Weapon x1 799 | -9/Materials | Repaired Lgt. Assault Rifle 826 | -9/Materials | Repaired Lgt. Treads 1075 | -9/Materials | Lost 6 parts (1p1n2u2w) 1149 | -9/Materials | Repaired Lgt. Assault Rifle 1159 | -9/Materials | Discovered new exit (range 11) 1274 | -9/Materials | Build established: Scavenger-Tank 1676 | -9/Materials | Discovered new exit (range 14) 1799 | -9/Materials | Entered Storage 2061 | -9/Storage | Core integrity fell below 50% 2092 | -9/Storage | Lost 6 parts (1p2n1u2w) 2114 | -9/Storage | Garrison activated, responded to threat 2240 | -9/Storage | Core integrity fell below 20% 2399 | -9/Storage | Destroyed by Y-45 Defender with Heavy Assault Rifle Last Messages --------------- W-16 Scout sends out distress signal. &YPUQMY:|ZN1K4YE%I YOCRED=BBNDXIE W-16 Scout sends out distress signal. AES&:VIKJW YOR37%Y,0D5DE# K-01 Serf cleans the Terminal. Lgt. Assault Rifle destroyed. Lgt. Armor Plating severed. Lgt. Treads destroyed. L-31 Rogue destroyed. K-01 Serf collects debris. Acquired Lgt. Armor Plating. System corrupted: Component data lost. K-01 Serf collects debris. Acquired Core Shielding. R-06 Scavenger collects Melee Analysis Suite. K-01 Serf suffers critical hit (Burn). K-01 Serf collects debris. Y-45 Defender suffers critical hit (Destroy). Critical hit (Burn: +37). Lgt. Assault Rifle destroyed. Map ----- +----------------------------------------------------+ | ??????????????????????????????????????????????? | | ??????????????????????????????????????????????? | | ??????????????????????????????????????????????? | | ??????????????????????????????????????????????? | | ??????????????????????????????????????????????? | | ??????????????????????????????????????????????? | | ??????????????????????????????????????????????? | | ??????????????????????????????????????????????? | | ??????????????????????? ? ????????????????????? | | ?????????????????????? ? #??????????????????? | | ?????????????????????? ???????????????????? | | ?????????????????????? T ???????????????????? | | ?????????????????????? ???????????????????? | | ?????????????????????? ???????????????????? | | ??????????????????????# #???????????????????? | | ??????????????????????# #???????????????????? | | ??????????????????????# #???????????????????? | | ??????????????????????# #???????????????????? | | ??????????????????????T #???????????????????? | | ??????????????????????# +???????????????????? | | ????#################?# #???????????????????? | | ???# # ### #???????????????????? | | ???# # + #???????????????????? | | #### # ### #???????????????????? | | # #?# Y #???????????????????? | | # #?#r%@#???????????????????? | | " + #?# #???????????????????? | | "G" # #?# k #???????????????????? | | " " #############?# #???????????????????? | | % #?????????????# #???????????????????? | | ##########????# k #???????????????????? | | # ###### #???????????????????? | | # + ? #???????????????????? | | # #???? #???????????????????? | | # #??? #???????????????????? | | # #??? #???????????????????? | | %% #??? #???????????????????? | | # #?? #???????????????????? | | # #?? #???????????????????? | | % # % #?? ????????????????????? | | ##########?? ????????????????????? | | #???????????? ????????????????????? | | #????????????????????????????????????? | | #????????????????????????????????????? | | #????????????????????????????????????? | | #????????????????????????????????????? | | #####????????????????????????????????????? | | ######????????????????????????????????????????? | | #?????????????????????????????????????????? | | #?????????????????????????????????????????? | +----------------------------------------------------+ Best States ------------- Heat Dissipation 39 Energy Generation 10 Energy Capacity 250 Matter Stores 300 Matter Capacity 300 Sight Range 16 Terrain Scan Density 10 Armor Coverage 300 Weapon Shielding 33 Evasion (%) 42 Recoil Reduction 2 Item Schematics ----------------- Cooling System | -9/Materials | Scanalyzed Lgt. Armor Plating | -9/Materials | Scanalyzed Lgt. Ion Engine | -9/Materials | Scanalyzed Robot Schematics ------------------ None Fabricated ------------ Nothing Repaired ---------- Lgt. Assault Rifle | 10% | -9/Materials Lgt. Treads | 6% | -9/Materials Lgt. Assault Rifle | 10% | -9/Materials Alien Tech Used ----------------- None Achievements -------------- None Challenges ------------ None Game ------ Seed ExpertArmoredInjector Manual? 0 Play Time 00:26:41 Cumulative 36.2 hours Start 2025.09.28 @ 12:54:01 End 2025.09.28 @ 13:19:27 Sessions 1 Manual Loads 0 Difficulty Rogue Special Mode None Game No. 65 Rogue 65 Adventurer 0 Explorer 0 Win Type - Total 0 Types 0/0/0/0/0/0/0/0/0/0 Lore% 11 Gallery% 26 Achievement% 26 Wizard Run 0 Options --------- Layout 1 ASCII 1 Keyboard 0 Movement Numpad Keybinds 0 Fullscreen 1 Font 24/Cog Map View 50x35 Zoom Use 0% Tactical HUD 0 Map Filters NONE Filters NONE Steam 0 RUN: cb3a43b2-e6e6-4247-b768-d9273a3eb845